bitfinex/quotes_ETHUSD_20241009
["timestamp","ask_amount","ask_price","bid_price","bid_amount"]
[1728442439429,0.09148139,2453.8,2453.6,4.07562]
[1728442439587,0.09148139,2453.8,2453.5,0.488676]
[1728442439792,6.59023228,2454.0,2453.5,4.564396]
[1728442439994,0.09115851,2453.9,2453.6,0.9452776]
[1728442440210,0.09115851,2453.9,2453.6,5.0209076]
[1728442440416,1.72496228,2454.1,2453.6,5.0208276]
[1728442440730,0.09083294,2453.8,2453.6,5.0208276]
[1728442440894,1.72496228,2454.1,2453.6,5.0208276]
[1728442441097,0.09083693,2453.7,2453.6,5.0208276]
[1728442441423,0.09093147,2453.7,2453.6,5.0208276]
[1728442441645,5.79978228,2454.1,2453.6,0.9452776]
[1728442441811,5.79978228,2454.1,2453.5,4.07567]
[1728442441812,0.090951,2453.7,2453.5,4.07567]
[1728442442196,1.72496228,2453.7,2453.2,4.1946047]
[1728442442408,0.09083098,2453.6,2453.3,0.8209]
[1728442442729,2.54526228,2453.8,2453.3,0.8209]
[1728442442935,0.09071369,2453.5,2453.4,4.07597]
[1728442443132,2.54526228,2453.8,2453.4,4.07597]
[1728442443133,1.72496228,2453.8,2453.4,4.07597]
[1728442443309,0.09071369,2453.5,2453.4,4.07597]
[1728442443505,1.72496228,2453.8,2453.4,4.07597]
[1728442443707,0.09071369,2453.5,2453.4,4.07597]
[1728442443908,1.72496228,2453.8,2453.4,4.98511347]
[1728442444130,0.09071369,2453.5,2453.4,4.07597]
[1728442444361,1.72496228,2453.8,2453.4,4.07597]
[1728442444518,0.09071369,2453.5,2453.4,4.07597]
[1728442444718,1.72496228,2453.8,2453.4,4.98511347]
[1728442445020,0.09095373,2453.7,2453.4,4.07597]
[1728442445231,1.72496228,2453.8,2453.4,4.07597]
[1728442445417,0.09083372,2453.6,2453.4,4.07588]
[1728442445643,2.54276228,2454.0,2453.5,4.89461]
[1728442446819,6.61775228,2454.0,2453.5,4.89461]
[1728442450621,1.72496228,2453.8,2453.4,4.07588]
[1728442453301,0.09098016,2453.7,2453.4,4.07588]
[1728442453604,1.72496228,2453.8,2453.4,4.07588]
[1728442453799,0.09098016,2453.7,2453.4,4.07588]
[1728442453999,6.61775228,2454.0,2453.5,4.0758]
[1728442454199,6.61775228,2454.0,2453.4,4.57808947]
[1728442454200,2.54436228,2454.2,2453.7,4.87915]
[1728442454407,0.09122017,2453.9,2453.7,0.8038]
[1728442454591,7.41461042,2454.3,2453.8,4.0752]
[1728442454793,10.69323228,2454.4,2453.8,4.970647]
[1728442455312,1.72496228,2454.2,2453.8,4.970647]
[1728442457411,1.72496228,2454.2,2453.9,4.07514]
[1728442457920,1.72496228,2454.2,2453.8,0.895447]
[1728442458621,1.72496228,2454.2,2453.8,4.970737]
[1728442460814,1.72496228,2454.2,2453.8,0.895447]
[1728442461132,2.54436228,2454.4,2453.9,4.6526027]
[1728442461287,2.54436228,2454.4,2454.0,0.7624]
[1728442461687,1.72496228,2454.4,2454.0,4.83736]
[1728442461888,1.72496228,2454.4,2454.0,1.71138427]
[1728442463291,5.79930228,2454.4,2454.0,1.71138427]
[1728442464305,1.72496228,2454.4,2454.0,1.71138427]
[1728442464722,5.79929228,2454.4,2454.0,1.71138427]
[1728442465953,1.72496228,2454.2,2453.7,4.07538]
[1728442466124,1.72496228,2454.0,2453.8,0.7858]
[1728442466819,1.72496228,2454.0,2453.5,0.7858]
[1728442466820,4.85976,2453.9,2453.5,0.7858]
[1728442467024,1.72496228,2453.8,2453.5,0.7858]
[1728442467207,5.80037228,2453.8,2453.3,0.7858]
[1728442467411,5.80037228,2453.8,2453.3,5.35996947]
[1728442467611,5.80037228,2453.8,2453.3,9.43599947]
[1728442467612,1.72496228,2453.8,2453.3,9.43599947]
[1728442467825,1.72496228,2453.8,2453.3,5.35988947]
[1728442468342,0.08781025,2453.7,2453.3,5.35988947]
[1728442468505,1.72496228,2453.8,2453.4,0.54783042]
[1728442468846,1.72496228,2453.8,2453.3,5.35988947]
[1728442469016,0.08780446,2453.7,2453.3,5.35988947]
[1728442469335,1.72496228,2453.8,2453.3,5.35988947]
[1728442469541,0.08768444,2453.6,2453.3,5.35988947]
[1728442469700,0.08780446,2453.7,2453.3,5.35988947]
[1728442469906,0.08756441,2453.5,2453.4,4.62380042]
[1728442470105,4.07503,2454.0,2453.4,4.62380042]
[1728442470106,5.79999228,2454.0,2453.4,4.62380042]
[1728442470306,0.08755072,2453.5,2453.4,4.62380042]
[1728442470515,5.79999228,2454.0,2453.4,4.62380042]
[1728442470714,0.08755042,2453.5,2453.4,4.07597]
[1728442471245,9.87507228,2454.0,2453.4,4.07597]
[1728442471443,1.72496228,2453.8,2453.4,4.07597]
[1728442471606,0.08779046,2453.7,2453.4,4.07597]
[1728442471805,6.55837228,2453.8,2453.3,4.86183]
[1728442472006,0.08779046,2453.7,2453.3,4.86183]
[1728442472316,2.48306228,2453.8,2453.3,5.35985447]
[1728442472530,0.08767044,2453.6,2453.3,5.35985447]
[1728442472728,0.08779046,2453.7,2453.3,5.35985447]
[1728442472947,0.08755042,2453.5,2453.3,5.35985447]
[1728442473118,2.48306228,2453.8,2453.3,5.35985447]
[1728442473299,0.08743038,2453.4,2453.3,0.7858]
[1728442473503,10.63386228,2453.8,2453.2,0.1184147]
[1728442473504,4.07549,2453.7,2453.2,0.1184147]
[1728442473713,0.08745985,2453.4,2453.2,0.1184147]
[1728442473921,4.07549,2453.7,2453.2,0.1184147]
[1728442474121,0.08733981,2453.3,2453.2,0.1184147]
[1728442474354,1.72496228,2453.6,2453.2,0.1184147]
[1728442474811,0.08752425,2453.5,2453.2,0.1184147]
[1728442477247,0.7564,2453.4,2453.2,0.1184147]
[1728442477551,0.08733798,2453.3,2453.2,0.1184147]
[1728442478317,6.55704228,2453.6,2453.2,0.1184147]
[1728442478532,0.08727959,2453.3,2453.2,0.1184147]
[1728442478865,0.08727898,2453.3,2453.2,0.1184147]
[1728442479362,6.55704228,2453.6,2453.2,0.1184147]
[1728442479961,0.08757288,2453.5,2453.2,0.1184147]
[1728442480166,0.08757288,2453.5,2453.4,0.7998]
[1728442480381,0.08757288,2453.5,2453.4,5.37520247]
[1728442480529,4.07508,2454.0,2453.4,1.29923247]
[1728442480730,0.08745287,2453.5,2453.4,4.87567]
[1728442480931,0.7754,2453.8,2453.4,4.87567]
[1728442481597,0.08780132,2453.7,2453.4,0.7998]
[1728442481929,0.7754,2453.8,2453.4,0.7998]
[1728442482143,0.0876813,2453.6,2453.4,0.7998]
[1728442482358,0.7754,2453.8,2453.4,0.7998]
[1728442482970,0.08780132,2453.7,2453.4,0.7998]
[1728442483327,0.7754,2453.8,2453.4,0.7998]
[1728442483527,0.08768984,2453.6,2453.4,0.7998]
[1728442483744,0.7754,2453.8,2453.4,0.7998]
[1728442483963,0.08756981,2453.5,2453.4,0.7998]
[1728442484431,0.7754,2453.8,2453.3,4.076]
[1728442484625,0.08780985,2453.7,2453.3,4.90308047]
[1728442484948,4.85075,2453.8,2453.3,4.076]
[1728442485151,0.08768984,2453.6,2453.2,0.9277147]
[1728442485381,5.14955421,2453.6,2453.2,0.1184147]
[1728442485545,2.64283209,2453.5,2453.2,0.1184147]
[1728442486246,6.71865209,2453.5,2453.2,0.1184147]
[1728442486985,2.64283209,2453.5,2453.2,0.1184147]
[1728442487385,6.71866209,2453.5,2453.2,0.1184147]
[1728442487571,7.90548372,2453.5,2453.2,0.1184147]
[1728442490204,1.72496228,2453.3,2453.2,0.1184147]
[1728442490685,5.88798147,2453.3,2453.2,0.1184147]
[1728442491095,1.81184147,2453.3,2453.2,0.1184147]
[1728442492050,5.88798147,2453.3,2453.2,0.1184147]
[1728442492266,3.00994978,2453.3,2453.2,0.1184147]
[1728442493902,7.90888978,2453.3,2453.2,0.1184147]
[1728442494084,6.71078147,2453.3,2453.2,0.1184147]
[1728442495455,7.26078147,2453.3,2453.2,0.1184147]
[1728442497909,10.26078147,2453.3,2453.2,0.1184147]
[1728442502009,8.53581919,2453.3,2453.2,0.1184147]
[1728442502222,9.24699911,2453.3,2453.2,0.1184147]
[1728442502508,7.97196139,2453.3,2453.2,0.1184147]
[1728442503513,10.97196139,2453.3,2453.2,0.1184147]
[1728442503670,11.52196139,2453.3,2453.2,0.1184147]
[1728442504501,10.53640662,2453.3,2453.2,0.1184147]
[1728442505385,0.08687919,2453.3,2453.2,0.1184147]
[1728442505583,4.16301919,2453.3,2453.2,0.1184147]
[1728442506267,0.08687919,2453.3,2453.2,0.1184147]
[1728442506498,4.16301919,2453.3,2453.2,0.1184147]
[1728442507807,0.08687919,2453.3,2453.2,0.1184147]
[1728442508773,4.16301919,2453.3,2453.2,0.1184147]
[1728442509515,0.08687919,2453.3,2453.2,0.1184147]
[1728442509677,0.08687919,2453.3,2453.2,0.8947147]
[1728442509882,4.07593,2453.5,2453.2,0.8947147]
[1728442510075,0.08681925,2453.3,2453.2,0.8947147]
[1728442510274,4.07593,2453.5,2453.2,0.8947147]
[1728442510475,0.0869393,2453.4,2453.2,0.8947147]
[1728442511486,7.90236681,2453.4,2453.2,0.1184147]
[1728442511816,4.07614,2453.3,2453.2,0.1184147]
[1728442512317,0.08681925,2453.3,2453.2,0.1184147]
[1728442513075,4.07596,2453.5,2453.2,0.1184147]
[1728442513272,0.0869393,2453.4,2453.2,0.1184147]
[1728442514276,11.97838681,2453.4,2453.2,0.1184147]
[1728442514477,4.07614,2453.3,2453.2,0.1184147]
[1728442514679,4.16295925,2453.3,2453.2,0.1184147]
[1728442516525,4.95385925,2453.3,2453.2,0.1184147]
[1728442519204,4.16295925,2453.3,2453.2,0.1184147]
[1728442520534,0.08681925,2453.3,2453.2,0.1184147]
[1728442521798,0.08681925,2453.3,2453.2,0.8688147]
[1728442522015,0.08681925,2453.3,2453.2,1.37334217]
[1728442522198,4.07582,2453.5,2453.2,0.8688147]
[1728442522398,0.08682533,2453.3,2453.2,0.8688147]
[1728442522963,10.81509751,2453.6,2453.2,0.8688147]
[1728442523275,0.08680594,2453.3,2453.2,0.8688147]
[1728442523442,10.81509751,2453.6,2453.2,1.37335917]
[1728442523643,10.81509751,2453.6,2453.2,0.8688147]
[1728442523965,4.16290541,2453.5,2453.2,0.8688147]
[1728442524575,0.08706541,2453.5,2453.2,0.8688147]
[1728442526481,1.81255036,2453.5,2453.2,0.8688147]
[1728442528137,5.88845036,2453.5,2453.2,0.8688147]
[1728442530076,4.07598,2453.4,2453.2,0.8688147]
[1728442530481,0.08682533,2453.3,2453.2,0.8688147]
[1728442530682,0.08682533,2453.3,2453.2,0.1184147]
[1728442530898,6.67485028,2453.3,2453.2,0.1184147]
[1728442533345,5.88845028,2453.3,2453.2,0.9371147]
[1728442533544,5.88845028,2453.3,2453.2,0.1184147]
[1728442534215,1.81231028,2453.3,2453.2,0.1184147]
[1728442534694,5.88845028,2453.3,2453.2,0.1184147]
[1728442534892,1.81231028,2453.3,2453.2,0.1184147]
[1728442535389,5.88845028,2453.3,2453.2,0.1184147]
[1728442536799,1.81231028,2453.3,2453.2,0.1184147]
[1728442536998,5.88845028,2453.3,2453.2,0.1184147]
[1728442537651,1.81231028,2453.3,2453.2,0.1184147]
[1728442538362,5.88845028,2453.3,2453.2,0.1184147]
[1728442538771,1.81231028,2453.3,2453.2,0.1184147]
[1728442539300,5.88845028,2453.3,2453.2,0.1184147]
[1728442540265,6.88489331,2453.3,2453.2,0.1184147]
[1728442541560,5.88845028,2453.3,2453.2,0.1184147]
[1728442547741,10.25595028,2453.3,2453.2,0.1184147]
[1728442553937,4.98046533,2453.3,2453.2,0.1184147]
[1728442554137,6.70595028,2453.3,2453.2,0.1184147]
[1728442554436,5.88845028,2453.3,2453.2,0.1184147]
[1728442556036,8.88845028,2453.3,2453.2,0.1184147]
[1728442558314,10.26517331,2453.3,2453.2,0.1184147]
[1728442559540,11.63907331,2453.3,2453.2,0.1184147]
[1728442566446,13.6549309,2453.3,2453.2,0.1184147]
[1728442568882,13.1049309,2453.3,2453.2,0.1184147]
[1728442569035,7.90430787,2453.3,2453.2,0.1184147]
[1728442570571,11.45430787,2453.3,2453.2,0.1184147]
[1728442572931,12.20670787,2453.3,2453.2,0.1184147]
[1728442586492,10.1919451,2453.3,2453.2,0.1184147]
[1728442586832,11.61873761,2453.3,2453.2,0.1184147]
[1728442587090,11.06873761,2453.3,2453.2,0.1184147]
[1728442587254,9.6419451,2453.3,2453.2,0.1184147]
[1728442589286,10.1919451,2453.3,2453.2,0.1184147]
[1728442605772,4.86247,2453.1,2453.0,0.1]
[1728442605975,11.56926928,2453.1,2453.0,0.1]
[1728442606175,11.65503094,2453.1,2453.0,0.1]
[1728442608141,12.07533164,2453.1,2453.0,0.1]
[1728442609341,6.35437977,2452.3,2452.2,0.7586]
[1728442609541,6.98981775,2452.3,2452.2,0.7586]
[1728442609744,6.43917766,2452.3,2452.2,0.7586]
[1728442614385,9.43917766,2452.3,2452.2,0.7586]
[1728442615390,9.64601942,2452.3,2452.2,0.7586]
[1728442618902,6.38181942,2452.3,2451.8,0.827]
[1728442619101,1.72657977,2451.9,2451.8,0.827]
[1728442619528,0.08430387,2451.9,2451.8,0.827]
[1728442619932,5.80472977,2452.1,2451.8,0.827]
[1728442620134,0.08430387,2451.9,2451.8,0.827]
[1728442620321,5.80472977,2452.1,2451.8,0.827]
[1728442620523,0.08430387,2451.9,2451.8,0.827]
[1728442620749,1.72657977,2452.1,2451.8,0.827]
[1728442620952,1.81088364,2451.9,2451.8,0.827]
[1728442621625,5.88934364,2451.9,2451.8,0.827]
[1728442621823,3.357659,2451.9,2451.8,0.827]
[1728442622035,4.07891,2451.7,2451.5,0.827]
[1728442622212,1.81051178,2451.6,2451.5,0.827]
[1728442623658,0.08393201,2451.6,2451.5,0.827]
[1728442623961,1.72657977,2451.8,2451.5,1.317636]
[1728442624180,0.08392957,2451.6,2451.5,1.317636]
[1728442624351,5.80521977,2451.8,2451.5,1.317636]
[1728442624526,0.08392957,2451.6,2451.5,1.317636]
[1728442624728,5.80521977,2451.8,2451.5,0.827]
[1728442625235,0.08404976,2451.7,2451.5,0.827]
[1728442625460,5.80521977,2451.8,2451.5,0.827]
[1728442625766,0.08404976,2451.7,2451.5,0.827]
[1728442626161,1.72657977,2451.8,2451.5,4.07908]
[1728442626363,0.08392957,2451.6,2451.5,4.07908]
[1728442626567,1.72657977,2451.8,2451.4,4.07929]
[1728442626738,0.08392253,2451.6,2451.5,0.7756]
[1728442626954,1.72657977,2451.8,2451.5,0.7756]
[1728442627267,1.72657977,2451.8,2451.5,1.669034]
[1728442627463,0.08404273,2451.7,2451.5,1.669034]
[1728442627648,1.72657977,2451.8,2451.5,1.669034]
[1728442627853,0.08404273,2451.7,2451.5,5.748154]
[1728442628058,1.72657977,2451.8,2451.5,5.748154]
[1728442628367,0.08404273,2451.7,2451.5,5.748154]
[1728442628742,1.72657977,2451.8,2451.5,5.748154]
[1728442628946,0.08389305,2451.6,2451.5,5.748154]
[1728442629150,1.72657977,2451.8,2451.5,5.748154]
[1728442629327,0.08389305,2451.6,2451.5,5.748154]
[1728442629528,1.72657977,2451.8,2451.5,5.748154]
[1728442629766,0.08389305,2451.6,2451.5,5.748154]
[1728442629975,1.72657977,2451.8,2451.5,1.669034]
[1728442630152,0.08389305,2451.6,2451.5,1.669034]
[1728442630359,1.72657977,2451.8,2451.5,1.669034]
[1728442630871,0.08401324,2451.7,2451.5,1.669034]
[1728442631164,1.72657977,2451.8,2451.5,1.669034]
[1728442631365,0.08389305,2451.6,2451.5,1.669034]
[1728442631569,1.72657977,2451.8,2451.5,1.669034]
[1728442631874,5.80521977,2451.8,2451.5,0.7756]
[1728442632075,0.08401324,2451.7,2451.5,0.7756]
[1728442632384,9.88399977,2451.8,2451.5,0.7756]
[1728442632532,0.08389305,2451.6,2451.5,0.7756]
[1728442632733,9.88399977,2451.8,2451.5,0.7756]
[1728442632966,0.08422397,2451.6,2451.5,0.7756]
[1728442633166,1.72657977,2451.8,2451.5,0.7756]
[1728442633371,0.08422397,2451.6,2451.5,0.7756]
[1728442633532,1.72657977,2451.8,2451.5,0.7756]
[1728442633727,0.08422397,2451.6,2451.5,0.7756]
[1728442633970,5.80520977,2451.8,2451.5,0.7756]
[1728442634171,0.08407311,2451.6,2451.5,0.7756]
[1728442634530,5.80520977,2451.8,2451.5,0.7756]
[1728442634730,4.16316244,2451.6,2451.5,0.7756]
[1728442634963,4.07896,2451.6,2451.5,0.7756]
[1728442635167,6.87812686,2451.6,2451.2,0.7757]
[1728442635338,5.80603977,2451.3,2451.2,0.7757]
[1728442635545,4.07939,2451.4,2451.2,0.7757]
[1728442635783,0.08380034,2451.3,2451.2,0.7757]
[1728442636166,5.80572977,2451.5,2451.2,0.7757]
[1728442636370,0.08391812,2451.4,2451.2,0.7757]
[1728442636686,4.16322812,2451.4,2451.2,0.7757]
[1728442637268,5.80603977,2451.3,2451.2,0.7757]
[1728442637510,5.88983768,2451.3,2451.2,0.7757]
[1728442638892,1.81037768,2451.3,2451.2,0.7757]
[1728442639312,1.81037768,2451.3,2450.9,0.7805]
[1728442639473,5.88984768,2451.3,2450.9,0.7805]
[1728442641972,1.81037768,2451.3,2450.9,0.7805]
[1728442642484,5.88987768,2451.3,2450.9,0.7805]
[1728442643511,5.80640977,2451.1,2450.9,0.7805]
[1728442643899,0.08306544,2451.0,2450.9,0.7805]
[1728442644095,0.87686544,2451.0,2450.8,0.1223171]
[1728442644270,1.72657977,2450.9,2450.8,0.1223171]
[1728442644608,6.55800594,2450.9,2450.8,0.1223171]
[1728442644768,0.75129617,2450.9,2450.8,0.1223171]
[1728442644968,1.80952342,2450.9,2450.8,0.1223171]
[1728442645372,0.08294365,2450.9,2450.8,0.1223171]
[1728442645704,1.72657977,2451.1,2450.8,0.9454171]
[1728442645882,0.08295881,2450.9,2450.8,0.9454171]
[1728442646087,1.72657977,2451.1,2450.8,0.9454171]
[1728442646595,0.08307908,2451.0,2450.8,0.9454171]
[1728442647569,1.72657977,2451.3,2450.9,4.08013]
[1728442647772,0.08350874,2451.2,2450.9,4.08013]
[1728442648319,0.08353037,2451.1,2450.9,4.08013]
[1728442648618,1.72657977,2451.3,2450.9,4.08013]
[1728442648776,0.08341013,2451.0,2450.9,4.08013]
[1728442649112,1.72657977,2451.3,2450.9,4.08013]
[1728442649277,0.08341013,2451.0,2450.9,4.08013]
[1728442649477,1.72657977,2451.3,2450.9,4.08013]
[1728442649677,0.08341013,2451.0,2450.9,4.08013]
[1728442649892,1.72657977,2451.3,2450.9,4.08013]
[1728442650113,0.08341013,2451.0,2450.9,4.08013]
[1728442650417,0.08341013,2451.0,2450.8,0.9454171]
[1728442651814,0.08341013,2451.0,2450.8,5.0256971]
[1728442651978,0.08341013,2451.0,2450.9,4.08013]
[1728442652173,0.08341013,2451.0,2450.9,4.88293]
[1728442652390,1.72657977,2451.3,2450.9,4.88293]
[1728442652602,1.72657977,2451.1,2450.8,0.1223171]
[1728442652912,0.083464,2451.0,2450.8,0.1223171]
[1728442654720,4.07955,2451.3,2450.8,0.1223171]
[1728442654901,0.08298588,2450.9,2450.8,0.1223171]
[1728442655110,5.80630977,2451.2,2450.8,0.1223171]
[1728442655417,1.72657977,2451.0,2450.8,0.1223171]
[1728442655784,0.08298588,2450.9,2450.8,0.1223171]
[1728442656779,4.16311588,2450.9,2450.8,0.1223171]
[1728442657484,4.71311588,2450.9,2450.8,0.1223171]
[1728442657831,5.84300245,2450.9,2450.8,0.1223171]
[1728442658933,5.84203486,2450.9,2450.8,0.1223171]
[1728442659295,4.16214829,2450.9,2450.8,0.1223171]
[1728442661112,0.08201829,2450.9,2450.8,0.1223171]
[1728442661435,4.16214829,2450.9,2450.8,0.1223171]
[1728442663741,0.08201829,2450.9,2450.8,0.1223171]
[1728442664597,4.07931,2451.4,2450.8,4.9746171]
[1728442664826,1.72657977,2451.2,2450.8,0.1223171]
[1728442665038,0.91061415,2451.3,2450.8,0.1223171]
[1728442665039,5.80654977,2451.0,2450.8,0.1223171]
[1728442665423,0.08294689,2450.9,2450.8,0.1223171]
[1728442666602,4.16307689,2450.9,2450.8,0.1223171]
[1728442666802,0.08294689,2450.9,2450.8,0.1223171]
[1728442667101,4.16307689,2450.9,2450.8,0.1223171]
[1728442667747,0.08294689,2450.9,2450.8,0.1223171]
[1728442668935,0.08294689,2450.9,2450.8,5.0133171]
[1728442669135,0.08294689,2450.9,2450.8,1.84239581]
[1728442669335,4.72657977,2451.2,2450.8,1.84239581]
[1728442669959,0.08318738,2451.1,2450.8,1.84239581]
[1728442674486,0.84208738,2451.1,2450.8,0.1223171]
[1728442674787,5.80670977,2450.9,2450.8,0.1223171]
[1728442675280,5.88965666,2450.9,2450.8,0.1223171]
[1728442678152,6.66625666,2450.9,2450.8,0.1223171]
[1728442678593,7.74088133,2450.9,2450.8,0.1223171]
[1728442680493,6.96428133,2450.9,2450.8,0.1223171]
[1728442680703,1.80952666,2450.9,2450.8,0.1223171]
[1728442681498,5.88965666,2450.9,2450.8,0.1223171]
[1728442685458,0.08294689,2450.9,2450.8,0.1223171]
[1728442685661,0.08294689,2450.9,2450.8,0.9179171]
[1728442685862,0.08294689,2450.9,2450.8,0.1223171]
[1728442687603,4.16307689,2450.9,2450.8,0.1223171]
[1728442687904,0.08294689,2450.9,2450.8,0.1223171]
[1728442688066,4.16307689,2450.9,2450.8,0.1223171]
[1728442690593,0.08294689,2450.9,2450.8,0.1223171]
[1728442692069,4.16307689,2450.9,2450.8,0.1223171]
[1728442692269,0.08294689,2450.9,2450.8,0.1223171]
[1728442699427,4.16307689,2450.9,2450.8,0.1223171]
[1728442701620,5.2567897,2450.9,2450.8,0.1223171]
[1728442701795,6.0639897,2450.9,2450.8,0.1223171]
[1728442706659,0.08294689,2450.9,2450.8,0.1223171]
[1728442707011,4.16307689,2450.9,2450.8,0.1223171]
[1728442707392,4.95567689,2450.9,2450.8,0.1223171]
[1728442707828,5.88965666,2450.9,2450.8,0.1223171]
[1728442708243,1.80952666,2450.9,2450.8,0.1223171]
[1728442709772,5.88965666,2450.9,2450.8,0.1223171]
[1728442709933,6.98514947,2450.9,2450.8,0.1223171]
[1728442712408,9.98514947,2450.9,2450.8,0.1223171]
[1728442712574,10.81134947,2450.9,2450.8,0.1223171]
[1728442720224,15.84380647,2450.9,2450.8,0.1223171]
[1728442721483,9.6347697,2450.9,2450.8,0.1223171]
[1728442721706,8.16317,2450.1,2449.7,0.8237]
[1728442721930,5.80815977,2450.1,2449.7,0.8237]
[1728442722131,0.08063961,2450.0,2449.7,0.8237]
[1728442723230,0.08063961,2450.0,2449.7,4.9058]
[1728442723395,0.08063961,2450.0,2449.7,0.8028]
[1728442723601,0.08063961,2450.0,2449.6,4.08228]
[1728442723602,3.0,2450.2,2449.9,0.8005]
[1728442725090,1.72657977,2450.1,2449.9,0.8005]
[1728442729624,3.0,2450.2,2449.9,0.8005]
[1728442730063,7.08131,2450.2,2449.9,0.8005]
[1728442730183,3.0,2450.2,2449.9,0.8005]
[1728442730516,7.08131,2450.2,2449.9,0.8005]
[1728442730714,5.80804977,2450.1,2449.7,0.8054]
[1728442731098,1.72657977,2450.1,2449.7,0.8054]
[1728442731312,5.80804977,2450.1,2449.7,0.8054]
[1728442732014,1.72657977,2450.1,2449.7,0.8054]
[1728442732195,1.72657977,2450.1,2449.7,4.88752]
[1728442732411,1.72657977,2450.1,2449.7,5.784489]
[1728442732612,3.0,2450.2,2449.7,4.979089]
[1728442732800,3.0,2450.2,2449.8,0.7765]
[1728442736678,1.72657977,2450.1,2449.8,0.7765]
[1728442738268,0.07782876,2450.0,2449.8,0.7765]
[1728442748973,0.07782876,2450.0,2449.7,0.8018]
[1728442752837,0.07782876,2450.0,2449.6,4.08217]
[1728442753938,0.07782876,2450.0,2449.6,8.16438]
[1728442754297,0.07782876,2450.0,2449.7,4.08211]
[1728442754807,0.07782876,2450.0,2449.8,4.08195]
[1728442755013,3.0,2450.2,2449.9,4.86837]
[1728442755214,3.0,2450.3,2449.9,0.7866]
[1728442755395,4.0918135,2450.3,2449.9,0.7866]
[1728442755911,8.1729635,2450.3,2449.9,0.7866]
[1728442757315,1.72657977,2450.2,2449.9,0.7866]
[1728442757716,1.72657977,2450.2,2449.7,0.766]
[1728442757918,4.08146,2450.1,2449.7,0.766]
[1728442759219,1.72657977,2450.2,2449.7,0.766]
[1728442759420,1.72657977,2450.2,2449.8,4.08195]
[1728442759863,5.80788977,2450.2,2449.7,0.766]
[1728442761171,1.72657977,2450.2,2449.7,4.84802]
[1728442761669,1.72657977,2450.2,2449.7,0.766]
[1728442761876,5.80787977,2450.2,2449.7,0.766]
[1728442762028,1.72657977,2450.2,2449.7,0.766]
[1728442762228,1.72657977,2450.2,2449.7,4.84803]
[1728442762868,0.8237,2450.4,2450.0,4.08152]
[1728442763040,2.55777977,2450.6,2450.1,0.7971]
[1728442763243,4.0808,2450.5,2450.1,0.7971]
[1728442763444,5.80756977,2450.4,2450.1,0.7971]
[1728442766381,1.72657977,2450.4,2450.1,0.7971]
[1728442768240,0.07819247,2450.3,2450.1,0.7971]
[1728442769783,0.07819247,2450.3,2449.9,0.7907]
[1728442771488,0.07819247,2450.3,2449.9,4.87239]
[1728442772583,0.07819247,2450.3,2449.9,0.7907]
[1728442774671,0.07819247,2450.3,2449.9,4.8724]
[1728442776388,0.07819247,2450.3,2450.0,4.08161]
[1728442776595,4.0808,2450.5,2450.0,4.08161]
[1728442776771,0.07550758,2450.4,2450.0,4.08161]
[1728442777402,0.07550758,2450.4,2450.1,4.08145]
[1728442777608,0.07550758,2450.4,2450.2,0.8021]
[1728442777983,2.55777977,2450.6,2450.2,0.8021]
[1728442778307,0.07562788,2450.5,2450.2,0.8021]
[1728442778914,4.15642788,2450.5,2450.2,0.8021]
[1728442784146,4.15642788,2450.5,2450.0,0.8116]
[1728442784147,5.80753977,2450.4,2450.0,0.8116]
[1728442784453,0.07538727,2450.3,2450.0,0.8116]
[1728442785855,4.90961727,2450.3,2449.8,4.89165]
[1728442786005,4.90961727,2450.3,2449.8,0.8098]
[1728442786205,5.80795977,2450.2,2449.8,0.8098]
[1728442786511,0.07514663,2450.1,2449.8,0.8098]
[1728442794657,0.07514663,2450.1,2449.6,4.08219]
[1728442794864,0.07514663,2450.1,2449.6,4.88369]
[1728442796260,2.50617977,2450.0,2449.6,4.88369]
[1728442796764,0.07490056,2449.9,2449.6,4.88369]
[1728442798458,0.07490056,2449.9,2449.7,4.86439]
[1728442798888,1.72657977,2450.2,2449.7,4.86439]
[1728442799193,0.07468143,2449.8,2449.6,4.08219]
[1728442799347,4.08148,2450.1,2449.6,4.08219]
[1728442799548,0.07465002,2449.7,2449.6,4.08219]
[1728442799745,1.72657977,2450.0,2449.6,4.978081]
[1728442800059,1.72657977,2450.0,2449.6,4.08219]
[1728442801883,5.80820977,2450.0,2449.5,0.7941]
[1728442802086,5.80820977,2450.0,2449.4,4.08254]
[1728442802087,1.72657977,2449.8,2449.4,4.08254]
[1728442802390,1.72657977,2449.8,2449.4,8.16503]
[1728442802568,0.787,2449.9,2449.5,4.08244]
[1728442803392,0.787,2450.2,2449.9,4.08178]
[1728442803552,0.7793,2450.5,2449.9,4.89251]
[1728442803889,4.86013,2450.5,2450.0,4.08156]
[1728442804189,1.72657977,2450.4,2450.0,4.08156]
[1728442804495,4.86013,2450.5,2450.0,4.08157]
[1728442804496,0.7793,2450.5,2450.0,4.08157]
[1728442804697,0.7793,2450.5,2449.9,5.381691]
[1728442804698,1.72657977,2450.4,2449.9,5.381691]
[1728442804848,0.7793,2450.5,2450.0,0.5381761]
[1728442805052,3.7793,2450.5,2450.1,4.08137]
[1728442805922,3.7793,2450.5,2449.9,4.8925]
[1728442805923,7.86012,2450.5,2449.9,4.8925]
[1728442806319,5.80754977,2450.4,2449.9,4.8925]
[1728442806732,0.7994,2450.3,2449.7,8.91762]
[1728442806927,0.7994,2450.3,2449.8,4.973692]
[1728442807609,4.88067,2450.3,2449.7,4.83558]
[1728442807810,0.7724,2450.1,2449.5,4.89102]
[1728442808006,1.72657977,2450.0,2449.5,4.89102]
[1728442808239,1.72657977,2450.0,2449.6,4.08225]
[1728442808557,1.72657977,2450.0,2449.5,8.97338]
[1728442808721,1.72657977,2450.0,2449.5,4.89096]
[1728442808928,1.72657977,2450.0,2449.6,4.08224]
[1728442809133,0.7724,2450.1,2449.5,4.89096]
[1728442809337,0.7724,2450.1,2449.7,4.08211]
[1728442810216,5.80796977,2450.2,2449.7,4.08211]
[1728442810856,0.7636,2450.3,2449.9,4.89977]
[1728442811364,0.7636,2450.3,2449.8,4.08193]
[1728442811521,0.7636,2450.3,2449.8,4.898326]
[1728442811721,0.7636,2450.3,2449.7,4.08203]
[1728442811722,5.80791977,2450.2,2449.7,4.08203]
[1728442811923,4.88588,2450.1,2449.6,0.8181]
[1728442812119,1.72657977,2450.0,2449.6,0.8181]
[1728442812365,1.72657977,2450.0,2449.6,4.90036]
[1728442813129,1.72657977,2450.0,2449.6,0.9471816]
[1728442813570,1.72657977,2450.0,2449.6,5.0293816]